Cogmind - Beta 12 --- EXPLORER MODE // 2023.09.13 @ 21:25:35 // Winter2019/RPGLIKE Player: soporte tecnico Result: Destroyed by B-99 Colossus with Multirail Performance ------------- Evolutions (9) 4500 Regions Visited (19) 3800 Robots Destroyed (521) 2605 Value Destroyed (24343) 24343 Prototype IDs (12) 240 Alien Tech Used (2) 400 Bonus (4693) 4693 TOTAL SCORE: 40581 Bonus ------- High Alert Combat Kills 2145 Follower Combat Kills 79 Entered DSFs 500 Scanned by Researcher 1000 Pursued by Intercept 1000 Friendly Fire -31 Cogmind --------- Core Integrity 0/1300 Matter 320/900 Energy 682/800 System Corruption 1% Temperature Cool (0) Movement Treading (160) Location -1/Command Parts ------- > --- POWER (2) -------- Vortex Chain Reactor > --- PROPULSION (4) --- High-density Centrium Heavy Treads High-density Centrium Heavy Treads > --- UTILITY (12) ----- Coolant Network Advanced Targeting Computer Advanced Target Analyzer Core Analyzer Armor Integrity Analyzer Recoil Stabilizer Kinecellerator Improved Focal Shield Improved Force Field Advanced Dynamic Insulation System > --- WEAPON (7) ------- KE Penetrator Heavy Gauss Cannon Heavy Gauss Cannon Linear Accelerator Graviton Cannon Micro-nuke Launcher Micro-nuke Launcher > --- INVENTORY (7) ---- Light Particle Reactor Kinecellerator Advanced ECM Suite KE Penetrator KE Penetrator KE Penetrator Peak State ------------ > --- POWER ------------ Vortex Chain Reactor > --- PROPULSION ------- High-density Centrium Heavy Treads High-density Centrium Heavy Treads > --- UTILITY ---------- Coolant Network Improved Signal Interpreter Advanced Terrain Scanner Advanced Targeting Computer Advanced Target Analyzer Core Analyzer Armor Integrity Analyzer Recoil Stabilizer Microwarp Drive > --- WEAPON ----------- KE Penetrator KE Penetrator KE Penetrator KE Penetrator Heavy Gauss Cannon Linear Accelerator Graviton Cannon > --- INVENTORY -------- Light Particle Reactor Improved Sensor Array Kinecellerator Improved Shock Absorption System Improved Force Field [Rating: 186] Favorites ----------- Power Improved Deuterium Engine Engine Improved Deuterium Engine Reactor Light Particle Reactor Propulsion Advanced Treads Treads Advanced Treads Utility Advanced Targeting Computer Device Recoil Stabilizer Processor Advanced Targeting Computer Hackware Hacking Suite Protection Improved Medium Armor Plating Artifact Microwarp Drive Weapon KE Penetrator Energy Gun Small Laser Ballistic Gun KE Penetrator Ballistic Cannon Graviton Cannon Launcher Micro-nuke Launcher Build | -11 -10 -9 -8 -8 -7 -6 -6 -6 -6 -6 -5 -4 -4 -3 -2 -2 -2 -1 -1 ------- Run | Jun Mat Mat Mat Sto Fac Fac Ext Cet Arc Hub Fac Fac DSF Res Res Tes Sec Acc Com Slots Evolved 21 | 3 2 3 4 . 1 1 . . . . 2 . 1 . . 3 . . 1 Power 1 | . . 1 . . . . . . . . . . . . . . . . . Propulsion 3 | 1 . 1 . . . . . . . . . . 1 . . . . . . Utility 11 | 1 2 . 3 . 1 1 . . . . 1 . . . . 1 . . 1 Weapon 6 | 1 . 1 1 . . . . . . . 1 . . . . 2 . . . Parts Attached 137 | 7 11 10 13 5 11 1 3 . . 1 10 . 5 19 3 18 6 4 10 Power 13 | 1 2 4 . . 3 . . . . . . . . 2 . 1 . . . Engine 10 | 1 2 4 . . 3 . . . . . . . . . . . . . . Core . | . . . . . . . . . . . . . . . . . . . . Reactor 3 | . . . . . . . . . . . . . . 2 . 1 . . . Propulsion 23 | 2 2 3 2 . . . 1 . . 1 1 . 2 5 . 4 . . . Treads 23 | 2 2 3 2 . . . 1 . . 1 1 . 2 5 . 4 . . . Leg . | . . . . . . . . . . . . . . . . . . . . Wheel . | . . . . . . . . . . . . . . . . . . . . Hover . | . . . . . . . . . . . . . . . . . . . . Flight . | . . . . . . . . . . . . . . . . . . . . Utility 72 | 2 4 . 8 5 8 1 1 . . . 3 . 3 12 2 9 4 3 7 Device 53 | 1 3 . 4 2 4 . . . . . 2 . 3 11 2 9 3 2 7 Storage . | . . . . . . . . . . . . . . . . . . . . Processor 10 | 1 1 . 2 . 2 1 . . . . 1 . . 1 . . . 1 . Hackware 1 | . . . . 1 . . . . . . . . . . . . . . . Protection 7 | . . . 2 2 2 . 1 . . . . . . . . . . . . Artifact 1 | . . . . . . . . . . . . . . . . . 1 . . Weapon 29 | 2 3 3 3 . . . 1 . . . 6 . . . 1 4 2 1 3 Energy Gun 2 | 1 1 . . . . . . . . . . . . . . . . . . Energy Cannon . | . . . . . . . . . . . . . . . . . . . . Ballistic Gun 19 | 1 . 3 3 . . . 1 . . . 6 . . . 1 3 . 1 . Ballistic Cannon 6 | . 2 . . . . . . . . . . . . . . 1 2 . 1 Launcher 2 | . . . . . . . . . . . . . . . . . . . 2 Special Weapon . | . . . . . . . . . . . . . . . . . . . . Impact Weapon . | . . . . . . . . . . . . . . . . . . . . Slashing Weapon . | . . . . . . . . . . . . . . . . . . . . Piercing Weapon . | . . . . . . . . . . . . . . . . . . . . Special Melee Weapon . | . . . . . . . . . . . . . . . . . . . . Unidentified Prototypes 9 | . . 1 1 . . . . . . . . . . . . 5 2 . . Parts Lost . | . . . . . . . . . . . . . . . . . . . . Power . | . . . . . . . . . . . . . . . . . . . . Propulsion . | . . . . . . . . . . . . . . . . . . . . Utility . | . . . . . . . . . . . . . . . . . . . . Weapon . | . . . . . . . . . . . . . . . . . . . . Highest Loss Streak . | . . . . . . . . . . . . . . . . . . . . To Critical Strikes . | . . . . . . . . . . . . . . . . . . . . Average Slot Usage (%) 92 | . 99 91 99 100 99 100 100 100 100 100 100 100 95 89 87 89 82 83 83 Engine 6 | . 12 14 13 12 11 11 11 11 11 11 10 10 9 4 . . . . . Reactor 2 | . . . . . . . . . . . . . . 4 9 8 4 4 4 Treads 13 | . 25 22 19 18 17 16 16 16 16 16 15 15 14 8 9 8 8 8 8 Device 22 | . 17 17 22 24 23 22 22 22 22 22 24 25 23 23 23 24 19 20 22 Processor 19 | . 16 17 12 12 16 17 22 22 22 22 25 25 23 23 23 21 20 20 19 Protection 1 | . . . 3 6 4 5 5 5 5 5 . . . . . . . . . Ballistic Gun 21 | . 12 14 26 25 23 22 22 22 22 22 23 25 23 22 21 23 18 16 14 Ballistic Cannon 2 | . 4 5 . . . . . . . . . . . . . . 10 12 13 Naked Turns . | . . . . . . . . . . . . . . . . . . . . Heaviest Build 129 | 8 12 27 37 40 46 46 46 46 46 46 53 53 68 74 75 99 104 105 129 Greatest Support 180 | 40 40 60 64 64 64 64 74 74 74 80 80 80 128 145 145 180 180 180 180 Greatest Overweight (x) . | . . . . . . . . . . . . . . . . . . . . Average Overweight (x) . | . . . . . . . . . . . . . . . . . . . . Largest Inventory Capacity 7 | . 3 3 3 3 5 5 5 5 5 5 7 7 7 7 7 7 7 7 7 Average Capacity 5 | . 2 3 3 3 4 5 5 5 5 5 5 7 7 7 7 7 7 7 7 Most Carried 7 | . 3 3 3 3 5 5 5 5 5 5 7 7 7 7 7 7 7 7 7 Average Carried 4 | . 1 2 2 2 3 5 4 5 5 5 4 7 7 6 6 5 6 5 6 Final Capacity 7 | . 3 3 3 3 5 5 5 5 5 5 7 7 7 7 7 7 7 7 7 Final Carried 7 | . 2 3 3 2 5 5 5 5 5 5 7 7 7 7 6 6 5 7 6 Class Distribution -------------------- 46% | Hacker-Gunner 23% | Scavenger-Executioner 20% | Scavenger-Gunner 5% | Hacker-Skirmisher 4% | Hacker-Mutant Dominant Class ---------------- Hacker-Mutant | -10/Materials Hacker-Skirmisher | -9/Materials Hacker-Gunner | -8/Materials Hacker-Gunner | -8/Storage Hacker-Gunner | -7/Factory Hacker-Gunner | -6/Factory Hacker-Gunner | -6/Extension Scavenger-Gunner | -6/Cetus Scavenger-Gunner | -6/Archives Scavenger-Gunner | -6/Hub_04(d) Scavenger-Gunner | -5/Factory Scavenger-Gunner | -4/Factory Scavenger-Gunner | -4/DSF Hacker-Gunner | -3/Research Hacker-Gunner | -2/Research Hacker-Gunner | -2/Testing Scavenger-Executioner | -2/Section 7 Scavenger-Executioner | -1/Access Scavenger-Executioner | -1/Command Resources | -11 -10 -9 -8 -8 -7 -6 -6 -6 -6 -6 -5 -4 -4 -3 -2 -2 -2 -1 -1 ----------- Run | Jun Mat Mat Mat Sto Fac Fac Ext Cet Arc Hub Fac Fac DSF Res Res Tes Sec Acc Com Matter Collected 13867 | 295 291 316 1209 711 368 434 510 304 144 550 444 . 230 1952 620 1680 849 1761 1199 Remotely . | . . . . . . . . . . . . . . . . . . . . Salvage Created 21737 | 220 352 377 1424 1299 570 925 786 461 166 1658 732 . 309 3736 791 3422 1327 1734 1448 Parts 1239 | 18 27 27 115 79 43 38 46 28 8 59 40 . 36 252 61 170 46 79 67 Haulers Intercepted 22 | . 2 2 3 5 2 2 . . . 2 1 . . 1 1 1 . . . Recyclers Shooed 6 | . 1 1 . 1 . . . . . . . . . . . . . 2 1 Parts Field Recycled . | . . . . . . . . . . . . . . . . . . . . Retrieved Matter . | . . . . . . . . . . . . . . . . . . . . Parts Self-Destructed . | . . . . . . . . . . . . . . . . . . . . Prevented . | . . . . . . . . . . . . . . . . . . . . Kills | -11 -10 -9 -8 -8 -7 -6 -6 -6 -6 -6 -5 -4 -4 -3 -2 -2 -2 -1 -1 ------- Run | Jun Mat Mat Mat Sto Fac Fac Ext Cet Arc Hub Fac Fac DSF Res Res Tes Sec Acc Com Combat Hostiles Destroyed 342 | . 6 7 29 25 15 8 17 17 4 18 12 . 8 57 18 36 17 22 26 Guns 305 | . 4 1 29 25 15 8 17 17 4 18 12 . 8 57 18 35 5 17 15 Cannons 37 | . 2 6 . . . . . . . . . . . . . 1 12 5 11 Classes Destroyed 25 | 3 5 4 2 . 1 . 1 . . . . . 1 2 . 2 . 1 3 Worker 39 | 2 1 1 9 2 3 2 . . . 7 1 . . 6 1 1 . 2 1 Builder 45 | . 1 1 8 3 3 4 4 . . . 1 . . 12 1 3 2 2 . Tunneler 7 | 5 . . . . . 1 1 . . . . . . . . . . . . Hauler 22 | . 2 2 3 5 2 2 . . . 2 1 . . 1 1 1 . . . Recycler 24 | 1 . 1 2 2 . 1 2 . . 5 1 . . 1 . 2 . 3 3 Mechanic 2 | . . . 1 1 . . . . . . . . . . . . . . . Operator 6 | . . 1 2 . . . 2 . . 1 . . . . . . . . . Watcher 31 | . 2 1 4 2 . 1 2 1 . 2 1 . . 7 . 3 1 4 . Swarmer 61 | . 2 . 4 . 5 . 7 5 . 3 4 . . 10 6 3 3 . 9 Grunt 129 | . 4 3 16 19 4 3 3 7 . 8 4 . 7 17 8 17 4 2 3 Brawler 6 | . . 1 1 1 . . . . . . . . . 3 . . . . . Duelist 8 | . . 1 . 2 1 . . 1 . . . . . 2 . 1 . . . Protector 1 | . . . . . . . . . . . . . . 1 . . . . . Researcher 3 | . . . . . . . . . . . . . . . . 2 1 . . Sentry 31 | . . 2 7 2 2 2 . . 4 2 . . . 5 3 . . 1 1 Specialist 2 | . . . . . . . . . . . . . . 2 . . . . . Hunter 36 | . . . 1 1 . 2 5 . . 4 2 . . 5 . 6 4 4 2 Programmer 41 | . . . . . 3 1 . . . 1 2 . . 11 1 8 2 7 5 Heavy 1 | . . . . . . . . . . . . . 1 . . . . . . Q-Series 4 | . . . . . . . . . . . . . . . . . . 4 . Behemoth 4 | . . . . . . . 2 . . . . . . 1 . . . . 1 Cetus Guard 4 | . . . . . . . . 4 . . . . . . . . . . . Tracker 4 | . . . . . . . . . . . . . . . . . 2 2 . Combat Programmer 4 | . . . . . . . . . . . . . . . . . 2 2 . Striker 2 | . . . . . . . . . . . . . . . . . . . 2 Executioner 2 | . . . . . . . . . . . . . . . . . . . 2 Alpha 7 1 | . . . . . . . . . . . . . . . . . . . 1 Fortress 1 | . . . . . . . . . . . . . . . . 1 . . . Best Kill Streak 18 | 3 2 3 18 11 4 5 7 6 4 8 6 . 4 14 14 11 9 6 7 Combat Bots Only 13 | . 2 2 7 9 3 3 5 6 4 5 4 . 4 8 13 9 8 4 6 Max Kills in Single Turn 7 | 1 1 1 2 2 2 3 3 2 1 3 2 . 2 7 3 3 2 4 2 Gunslinging 2 | . . . 1 1 . . 2 1 . 1 1 . 1 2 1 1 . . . Exploded . | . . . . . . . . . . . . . . . . . . . . Melee . | . . . . . . . . . . . . . . . . . . . . Uniques/NPCs Destroyed . | . . . . . . . . . . . . . . . . . . . . Combat | -11 -10 -9 -8 -8 -7 -6 -6 -6 -6 -6 -5 -4 -4 -3 -2 -2 -2 -1 -1 -------- Run | Jun Mat Mat Mat Sto Fac Fac Ext Cet Arc Hub Fac Fac DSF Res Res Tes Sec Acc Com Damage Taken 12285 | . 141 207 488 259 460 178 715 614 177 529 336 . 207 1541 572 1309 613 1598 2341 Core 9381 | . 111 166 366 188 340 115 518 414 128 403 259 . 160 1194 438 1033 472 1277 1799 Absorbed by Shields 1568 | . . . . . . . . . . . . . 72 706 96 341 . . 353 Redirected to Core 8423 | . 86 134 305 149 310 96 458 373 117 349 230 . 160 1072 426 932 466 1128 1632 Regen/Repaired (Parts) 513 | . . . . . . . . . . . . . . . . . 513 . . Core Remaining (%) 90 | 100 98 100 . 100 79 . . . . 88 84 . 100 100 . . 59 . . Volleys Fired 623 | 25 33 35 60 39 22 20 30 21 7 35 18 . 9 80 24 62 21 45 37 Largest 7 | 2 2 3 4 4 4 4 4 4 4 4 5 . 5 5 5 7 7 7 7 Hottest 389 | 60 60 75 100 100 100 100 100 100 100 100 165 . 165 165 165 265 329 329 389 Shots Fired 2820 | 50 66 72 240 157 88 80 120 84 28 140 82 . 45 390 108 362 147 307 254 Gun 2458 | 50 57 39 240 157 88 80 120 84 28 140 82 . 45 390 108 359 89 178 124 Cannon 358 | . 9 33 . . . . . . . . . . . . . 3 58 129 126 Launcher 4 | . . . . . . . . . . . . . . . . . . . 4 Special . | . . . . . . . . . . . . . . . . . . . . Kinetic 2767 | 25 42 72 240 157 88 80 120 84 28 140 82 . 45 390 108 362 147 307 250 Thermal 49 | 25 24 . . . . . . . . . . . . . . . . . . Explosive 4 | . . . . . . . . . . . . . . . . . . . 4 Electromagnetic . | . . . . . . . . . . . . . . . . . . . . Robot Hit Streak 79 | 16 28 35 47 47 23 34 22 41 17 29 33 . 16 79 65 61 37 51 45 Robot Miss Streak 4 | 1 2 1 3 2 2 2 3 4 1 2 1 . 1 1 1 1 2 3 2 Penetration Max 1 | . . . . . . . . . . . 1 . 1 1 1 1 1 1 1 Secondary Targets 89 | . 1 . 7 8 . 2 6 6 1 6 4 . 3 25 9 11 . . . Max Gunslinging Chain 3 | . 1 . 1 1 . 1 2 2 1 1 1 . 1 3 2 1 . . . Shots Hit Robots 1968 | 41 56 63 150 111 50 62 90 70 24 111 61 . 36 278 90 277 77 155 166 Core Hits 1153 | 13 23 23 96 76 39 42 68 60 18 94 40 . 21 162 43 146 42 75 72 Critical Kills 38 | . . . . 1 . . . 1 . 2 . . . 7 7 12 . 5 3 Critical Parts Destroyed 73 | . . 1 . . 1 2 . . 1 1 . . . 14 8 24 5 6 10 Critical Strikes 156 | . . 3 . 1 1 2 . 1 1 3 . . . 21 16 40 17 19 31 Destroy 118 | . . 1 . 1 1 2 . 1 1 3 . . . 21 16 40 5 11 15 Blast 38 | . . 2 . . . . . . . . . . . . . . 12 8 16 Melee Attacks . | . . . . . . . . . . . . . . . . . . . . Impact . | . . . . . . . . . . . . . . . . . . . . Slashing . | . . . . . . . . . . . . . . . . . . . . Piercing . | . . . . . . . . . . . . . . . . . . . . Sneak Attacks . | . . . . . . . . . . . . . . . . . . . . Combat Hostiles . | . . . . . . . . . . . . . . . . . . . . Follow-up Attacks . | . . . . . . . . . . . . . . . . . . . . Damage Inflicted 62826 | 415 596 1032 3513 2973 1442 1710 2364 2022 712 3296 1767 . 1378 10380 3224 8814 3358 6252 7578 Guns 53026 | 415 485 431 3513 2896 1442 1710 2364 2022 712 3283 1761 . 1378 9543 3216 8698 2092 3768 3297 Cannons 7996 | . 103 601 . . . . . . . . . . . . . 90 1266 2351 3585 Explosions 1760 | . . . . 77 . . . . . . . . . 828 . 26 . 133 696 Melee . | . . . . . . . . . . . . . . . . . . . . Ramming 44 | . 8 . . . . . . . . 13 6 . . 9 8 . . . . Kinetic 60508 | 159 330 1032 3513 2896 1442 1710 2364 2022 712 3283 1761 . 1378 9543 3216 8788 3358 6119 6882 Thermal 514 | 256 258 . . . . . . . . . . . . . . . . . . Explosive 1627 | . . . . 77 . . . . . . . . . 828 . 26 . . 696 Electromagnetic 133 | . . . . . . . . . . . . . . . . . . 133 . Impact . | . . . . . . . . . . . . . . . . . . . . Slashing . | . . . . . . . . . . . . . . . . . . . . Piercing . | . . . . . . . . . . . . . . . . . . . . Highest Corruption 2 | . . . 1 1 2 . . . . 1 . . . 2 . 2 1 1 1 Average Corruption 1 | . . . 1 1 1 . . . . 1 . . . 1 . 1 1 1 1 Corruption Purged 10 | . . . . . 3 . . . . . . . . 4 . 3 . . . Corruption Blocked 20 | . . . . . . . . . . . . . . . . . 20 . . Effects 43 | . . . 8 8 1 . . . . . . . . 4 . . 2 12 8 Message Errors 4 | . . . . . 1 . . . . . . . . 1 . . . 1 1 Matter Fused 15 | . . . 2 5 . . . . . . . . . 1 . . 1 3 3 Heat Flow Errors 10 | . . . 4 1 . . . . . . . . . . . . 1 2 2 Energy Discharges 3 | . . . . . . . . . . . . . . 1 . . . 2 . Parts Rejected 1 | . . . . . . . . . . . . . . 1 . . . . . Data Loss (minor) 4 | . . . 1 1 . . . . . . . . . . . . . 1 1 Data Loss (major) 1 | . . . . . . . . . . . . . . . . . . 1 . Misfires 1 | . . . . 1 . . . . . . . . . . . . . . . Alerts 1 | . . . 1 . . . . . . . . . . . . . . . . Weapon Failures 3 | . . . . . . . . . . . . . . . . . . 2 1 Overload Shots . | . . . . . . . . . . . . . . . . . . . . Overflow Damage 537 | . . 1 . 21 . . . . . . . . . 135 . . 12 196 172 Projectiles 311 | . . 1 . . . . . . . . . . . . . . 12 196 102 Explosions 226 | . . . . 21 . . . . . . . . . 135 . . . . 70 Melee . | . . . . . . . . . . . . . . . . . . . . Knockbacks 65 | . 4 7 . . . . . . . . . . . . 1 . 8 17 28 Impact 1 | . . . . . . . . . . . . . . . 1 . . . . Kinetic 60 | . 3 7 . . . . . . . . . . . . . . 8 17 25 Secondary 4 | . 1 . . . . . . . . . . . . . . . . . 3 Self-Inflicted Damage 278 | . . . . 32 154 . . . . . . . . . . . . 16 76 Shots 8 | . . . . 2 3 . . . . . . . . . . . . 1 2 Rammed 10 | . 4 . . . . . . . . 2 2 . . 1 1 . . . . Targets Rammed 10 | . 4 . . . . . . . . 2 2 . . 1 1 . . . . Kicked . | . . . . . . . . . . . . . . . . . . . . Crushed . | . . . . . . . . . . . . . . . . . . . . Highest Temperature 357 | 40 88 198 335 238 192 129 213 253 81 177 249 . 204 357 18 278 126 111 89 Average Temperature 67 | 17 26 57 89 65 61 40 62 89 33 47 86 . 89 89 5 51 126 111 89 Received Heat Transfer 2645 | . 162 63 306 207 102 57 153 246 63 120 129 . 64 360 167 272 18 72 84 Effects 3 | . . . . . . . . . . . . . . 3 . . . . . Interference 3 | . . . . . . . . . . . . . . 3 . . . . . Siege Activations . | . . . . . . . . . . . . . . . . . . . . Robots Corrupted . | . . . . . . . . . . . . . . . . . . . . Combat Hostiles . | . . . . . . . . . . . . . . . . . . . . Parts Fried 1 | . . . . . . . 1 . . . . . . . . . . . . Impact Corruptions . | . . . . . . . . . . . . . . . . . . . . Robots Melted . | . . . . . . . . . . . . . . . . . . . . Combat Hostiles . | . . . . . . . . . . . . . . . . . . . . Parts Melted 1 | . . . . 1 . . . . . . . . . . . . . . . Heat Transferred 1150 | 575 575 . . . . . . . . . . . . . . . . . . Parts Sabotaged . | . . . . . . . . . . . . . . . . . . . . Parts Stolen . | . . . . . . . . . . . . . . . . . . . . Parts Stripped . | . . . . . . . . . . . . . . . . . . . . Power Chain Reactions . | . . . . . . . . . . . . . . . . . . . . Missiles Intercepted . | . . . . . . . . . . . . . . . . . . . . Alert | -11 -10 -9 -8 -8 -7 -6 -6 -6 -6 -6 -5 -4 -4 -3 -2 -2 -2 -1 -1 ------- Run | Jun Mat Mat Mat Sto Fac Fac Ext Cet Arc Hub Fac Fac DSF Res Res Tes Sec Acc Com Peak Influence 829 | 40 126 280 560 610 251 239 349 396 166 469 298 73 218 639 829 765 622 574 539 Initial 349 | . 19 37 29 155 201 56 42 . 26 39 120 73 38 91 202 349 228 282 94 Average 236 | 21 81 89 331 392 120 106 135 226 124 224 117 73 97 211 465 506 358 235 305 Maximum Alert Level 3 | . . 1 2 2 1 1 1 1 . 2 1 . 1 2 3 3 2 2 2 Low Security (%) 50 | 100 100 87 17 14 72 88 89 26 100 49 78 100 81 52 . 5 4 49 16 Level 1 28 | . . 12 39 29 27 11 10 73 . 33 21 . 18 28 48 24 63 31 54 Level 2 19 | . . . 42 56 . . . . . 16 . . . 18 36 56 32 18 28 Level 3 1 | . . . . . . . . . . . . . . . 15 13 . . . Level 4 . | . . . . . . . . . . . . . . . . . . . . Level 5 . | . . . . . . . . . . . . . . . . . . . . High Security . | . . . . . . . . . . . . . . . . . . . . Max Security . | . . . . . . . . . . . . . . . . . . . . Sterilizations 1 | . . . . . . . . . . . . . 1 . . . . . . Squads Dispatched 73 | . . 2 4 6 3 2 1 1 . 4 4 . 1 13 2 12 8 9 1 Investigation 12 | . . . 1 1 . 1 . 1 . 1 1 . . 4 . 2 . . . Extermination 17 | . . . . . 3 . . . . . 1 . . 4 . 3 1 4 1 Reinforcement 26 | . . 2 3 1 . 1 1 . . 3 1 . 1 2 2 5 4 . . Assault 8 | . . . . 2 . . . . . . 1 . . 3 . 1 . 1 . Garrison 4 | . . . . 2 . . . . . . . . . . . 1 . 1 . Intercept 6 | . . . . . . . . . . . . . . . . . 3 3 . Searches Triggered . | . . . . . . . . . . . . . . . . . . . . Construction Impeded 4 | . . . . . . . . . . . 1 . . . 1 1 1 . . Haulers Reinforced 5 | . . . . . . 1 . . . 2 . . . . 1 1 . . . Active Scanning Responses . | . . . . . . . . . . . . . . . . . . . . Cargo Convoy Interrupts 1 | . . . . . . . . . . . 1 . . . . . . . . Stealth | -11 -10 -9 -8 -8 -7 -6 -6 -6 -6 -6 -5 -4 -4 -3 -2 -2 -2 -1 -1 --------- Run | Jun Mat Mat Mat Sto Fac Fac Ext Cet Arc Hub Fac Fac DSF Res Res Tes Sec Acc Com Distress Signals 29 | . 1 1 4 4 . 1 1 2 . 6 . . . 5 . . . 2 2 Communications Jammed . | . . . . . . . . . . . . . . . . . . . . Distress Signals . | . . . . . . . . . . . . . . . . . . . . Times Spotted 466 | . 13 13 42 33 16 9 28 20 4 26 15 . 8 79 24 47 24 26 39 Peak Tracking Total 14 | . 3 3 8 9 3 3 6 7 2 6 4 . 4 7 14 5 9 5 10 Tactical Retreats 21 | . . 2 1 . . . 5 . . . . . . 3 3 3 3 . 1 Traps | -11 -10 -9 -8 -8 -7 -6 -6 -6 -6 -6 -5 -4 -4 -3 -2 -2 -2 -1 -1 ------- Run | Jun Mat Mat Mat Sto Fac Fac Ext Cet Arc Hub Fac Fac DSF Res Res Tes Sec Acc Com Traps Triggered 12 | . 3 . 2 1 1 . . . . . . . . 3 . . . 2 . Indirectly . | . . . . . . . . . . . . . . . . . . . . Trap Hack Attempts . | . . . . . . . . . . . . . . . . . . . . Triggered . | . . . . . . . . . . . . . . . . . . . . Disarmed . | . . . . . . . . . . . . . . . . . . . . Reprogrammed 6 | . . . . 6 . . . . . . . . . . . . . . . Reused . | . . . . . . . . . . . . . . . . . . . . Traps Extracted . | . . . . . . . . . . . . . . . . . . . . Installed . | . . . . . . . . . . . . . . . . . . . . Triggered 2 | . . . . . . . . . . . 2 . . . . . . . . Machines | -11 -10 -9 -8 -8 -7 -6 -6 -6 -6 -6 -5 -4 -4 -3 -2 -2 -2 -1 -1 ---------- Run | Jun Mat Mat Mat Sto Fac Fac Ext Cet Arc Hub Fac Fac DSF Res Res Tes Sec Acc Com Machines Disabled 30 | . . . 2 2 4 . 1 . . . 1 . . 4 . 9 5 2 . Max in Single Turn 3 | . . . 1 2 3 . 1 . . . 1 . . 1 . 3 1 1 . Garrison Access 5 | . . . . 1 . . . . . . 1 . . 1 . 1 . 1 . Energy Cycler 3 | . . . . . . . 3 . . . . . . . . . . . . Machines Repaired . | . . . . . . . . . . . . . . . . . . . . Machines Sabotaged . | . . . . . . . . . . . . . . . . . . . . Overloaded Fab Kills . | . . . . . . . . . . . . . . . . . . . . Hacking | -11 -10 -9 -8 -8 -7 -6 -6 -6 -6 -6 -5 -4 -4 -3 -2 -2 -2 -1 -1 --------- Run | Jun Mat Mat Mat Sto Fac Fac Ext Cet Arc Hub Fac Fac DSF Res Res Tes Sec Acc Com Machines Accessed 46 | . 2 2 2 8 2 1 5 3 1 2 1 1 . 6 . 6 1 3 . Terminals 37 | . 2 2 2 7 1 1 5 3 . 2 1 1 . 3 . 4 . 3 . Fabricators 3 | . . . . . . . . . . . . . . 2 . 1 . . . Repair Stations . | . . . . . . . . . . . . . . . . . . . . Recycling Units . | . . . . . . . . . . . . . . . . . . . . Scanalyzers 2 | . . . . . 1 . . . . . . . . . . . 1 . . Garrison Access 3 | . . . . 1 . . . . . . . . . 1 . 1 . . . Total Hacks 123 | . 10 3 4 20 4 5 10 6 7 5 3 2 . 18 . 17 4 5 . Successful 73 | . 4 3 2 13 3 2 7 6 7 2 2 1 . 9 . 5 4 3 . Failed 50 | . 6 . 2 7 1 3 3 . . 3 1 1 . 9 . 12 . 2 . Catastrophic 3 | . 2 . . . . . . . . 1 . . . . . . . . . Database Lockouts . | . . . . . . . . . . . . . . . . . . . . Manual . | . . . . . . . . . . . . . . . . . . . . Terminals 97 | . 10 3 4 18 2 5 10 6 . 5 3 2 . 11 . 13 . 5 . Fabricators 9 | . . . . . . . . . . . . . . 6 . 3 . . . Repair Stations . | . . . . . . . . . . . . . . . . . . . . Recycling Units . | . . . . . . . . . . . . . . . . . . . . Scanalyzers 6 | . . . . . 2 . . . . . . . . . . . 4 . . Garrison Access 4 | . . . . 2 . . . . . . . . . 1 . 1 . . . Terminal Hacks 61 | . 4 3 2 12 1 2 7 6 7 2 2 1 . 6 . 3 . 3 . Record 25 | . 4 . . 1 . . . 5 7 1 1 . . 5 . 1 . . . Part Schematic 4 | . . . . 2 . . . . . . . . . 1 . 1 . . . Open Door 11 | . . . . 2 . . 4 1 . . . . . . . 1 . 3 . Open DSF 2 | . . . . . 1 . . . . . . 1 . . . . . . . Emergency Access Points 1 | . . 1 . . . . . . . . . . . . . . . . . Recycling Unit Index 1 | . . 1 . . . . . . . . . . . . . . . . . Alert Level 1 | . . . . 1 . . . . . . . . . . . . . . . Locate Traps 3 | . . . . 2 . . . . . 1 . . . . . . . . . Reprogram Traps 1 | . . . . 1 . . . . . . . . . . . . . . . Dispatch Records 1 | . . . . 1 . . . . . . . . . . . . . . . Patrol Status 1 | . . . . 1 . . . . . . . . . . . . . . . Recall Extermination 2 | . . . . . . . 1 . . . 1 . . . . . . . . Recall Reinforcements 1 | . . . . . . . 1 . . . . . . . . . . . . Hauler Manifests 1 | . . . . . . 1 . . . . . . . . . . . . . Zone Layout 6 | . . 1 2 1 . 1 1 . . . . . . . . . . . . Fabricator Hacks 3 | . . . . . . . . . . . . . . 2 . 1 . . . Network Status 1 | . . . . . . . . . . . . . . 1 . . . . . Load Schematic 2 | . . . . . . . . . . . . . . 1 . 1 . . . Repair Station Hacks . | . . . . . . . . . . . . . . . . . . . . Recycling Unit Hacks . | . . . . . . . . . . . . . . . . . . . . Scanalyzer 6 | . . . . . 2 . . . . . . . . . . . 4 . . Insert Component 3 | . . . . . 1 . . . . . . . . . . . 2 . . Analyze 3 | . . . . . 1 . . . . . . . . . . . 2 . . Garrison Access Hacks 3 | . . . . 1 . . . . . . . . . 1 . 1 . . . Seal Access 3 | . . . . 1 . . . . . . . . . 1 . 1 . . . Unauthorized Hacks . | . . . . . . . . . . . . . . . . . . . . Terminals . | . . . . . . . . . . . . . . . . . . . . Fabricators . | . . . . . . . . . . . . . . . . . . . . Repair Stations . | . . . . . . . . . . . . . . . . . . . . Recycling Units . | . . . . . . . . . . . . . . . . . . . . Scanalyzers . | . . . . . . . . . . . . . . . . . . . . Garrison Access . | . . . . . . . . . . . . . . . . . . . . Data Cores Recovered 4 | . . 1 1 . . . 1 . . 1 . . . . . . . . . Used . | . . . . . . . . . . . . . . . . . . . . Hacking Detections 27 | . 2 . 1 1 1 1 2 2 . 2 1 1 . 5 . 5 1 2 . Full Trace Events 12 | . . . 1 1 . 1 . 1 . 1 1 . . 4 . 2 . . . Feedback Events 1 | . . . . . . . . . . . . . . 1 . . . . . Corruption 1 | . . . . . . . . . . . . . . 1 . . . . . Feedback Blocked . | . . . . . . . . . . . . . . . . . . . . Robot Schematics Acquired 4 | . . . . . . . . . . . . . . . . 2 2 . . Robots Built . | . . . . . . . . . . . . . . . . . . . . Authchips . | . . . . . . . . . . . . . . . . . . . . Time . | . . . . . . . . . . . . . . . . . . . . Total Robot Build Rating . | . . . . . . . . . . . . . . . . . . . . Part Schematics Acquired 11 | . . . . 2 1 . . . . . . . . 1 . 5 2 . . Parts Built . | . . . . . . . . . . . . . . . . . . . . Authchips . | . . . . . . . . . . . . . . . . . . . . Time . | . . . . . . . . . . . . . . . . . . . . Total Part Build Rating . | . . . . . . . . . . . . . . . . . . . . Parts Repaired . | . . . . . . . . . . . . . . . . . . . . Time . | . . . . . . . . . . . . . . . . . . . . Parts Recycled . | . . . . . . . . . . . . . . . . . . . . Recycled Matter . | . . . . . . . . . . . . . . . . . . . . Retrieved Matter . | . . . . . . . . . . . . . . . . . . . . Retrieved Components . | . . . . . . . . . . . . . . . . . . . . Parts Scanalyzed 3 | . . . . . 1 . . . . . . . . . . . 2 . . Part Schematics Acquired 3 | . . . . . 1 . . . . . . . . . . . 2 . . Parts Damaged . | . . . . . . . . . . . . . . . . . . . . Bothacking | -11 -10 -9 -8 -8 -7 -6 -6 -6 -6 -6 -5 -4 -4 -3 -2 -2 -2 -1 -1 ------------ Run | Jun Mat Mat Mat Sto Fac Fac Ext Cet Arc Hub Fac Fac DSF Res Res Tes Sec Acc Com Used RIF Installer . | . . . . . . . . . . . . . . . . . . . . Robots Hacked . | . . . . . . . . . . . . . . . . . . . . Non-combat . | . . . . . . . . . . . . . . . . . . . . Combat . | . . . . . . . . . . . . . . . . . . . . Robot Hacks Applied . | . . . . . . . . . . . . . . . . . . . . Relay Couplers Released 2 | . . . . . . . . . . 1 1 . . . . . . . . Machine Destruction 1 | . . . . . . . . . . . 1 . . . . . . . . Programmers 1 | . . . . . . . . . . 1 . . . . . . . . . Fabnet Peak Effective % . | . . . . . . . . . . . . . . . . . . . . Robots Rewired . | . . . . . . . . . . . . . . . . . . . . Allies Hacked . | . . . . . . . . . . . . . . . . . . . . Hacks Repelled . | . . . . . . . . . . . . . . . . . . . . Allies | -11 -10 -9 -8 -8 -7 -6 -6 -6 -6 -6 -5 -4 -4 -3 -2 -2 -2 -1 -1 -------- Run | Jun Mat Mat Mat Sto Fac Fac Ext Cet Arc Hub Fac Fac DSF Res Res Tes Sec Acc Com Total Allies 3 | . . . . 2 . . 1 . . . . . . . . . . . . Largest Group 2 | . . . . 2 . . 1 . . . . . . . . . . . . Highest-Rated Group 62 | . . . . 62 . . 31 . . . . . . . . . . . . Highest-Rated Ally 31 | . . . . 31 . . 31 . . . . . . . . . . . . Total Orders . | . . . . . . . . . . . . . . . . . . . . Ally Attacks 32 | . . . . 25 . . 7 . . . . . . . . . . . . Total Damage 405 | . . . . 300 . . 105 . . . . . . . . . . . . Kills 3 | . . . . 1 . . 2 . . . . . . . . . . . . Allies Corrupted . | . . . . . . . . . . . . . . . . . . . . Allies Melted . | . . . . . . . . . . . . . . . . . . . . Intel | -11 -10 -9 -8 -8 -7 -6 -6 -6 -6 -6 -5 -4 -4 -3 -2 -2 -2 -1 -1 ------- Run | Jun Mat Mat Mat Sto Fac Fac Ext Cet Arc Hub Fac Fac DSF Res Res Tes Sec Acc Com Robot Analysis Total . | . . . . . . . . . . . . . . . . . . . . Derelict Logs Recovered . | . . . . . . . . . . . . . . . . . . . . Drone Launches . | . . . . . . . . . . . . . . . . . . . . Drone Recoveries . | . . . . . . . . . . . . . . . . . . . . Exploration | -11 -10 -9 -8 -8 -7 -6 -6 -6 -6 -6 -5 -4 -4 -3 -2 -2 -2 -1 -1 ------------- Run | Jun Mat Mat Mat Sto Fac Fac Ext Cet Arc Hub Fac Fac DSF Res Res Tes Sec Acc Com Turns Passed 18098 | 378 771 724 1121 731 1458 494 1276 404 227 492 791 115 270 3070 275 1837 734 1997 933 Spaces Moved 8193 | 190 397 350 527 325 840 268 736 196 120 212 412 75 116 1043 84 781 335 776 410 Core 5 | 5 . . . . . . . . . . . . . . . . . . . Treads 8185 | 185 397 350 527 325 840 268 736 196 120 212 412 75 116 1043 84 781 332 776 410 Legs . | . . . . . . . . . . . . . . . . . . . . Wheels . | . . . . . . . . . . . . . . . . . . . . Hover . | . . . . . . . . . . . . . . . . . . . . Flight . | . . . . . . . . . . . . . . . . . . . . Fastest Speed 50 | 50 160 160 150 150 150 150 150 150 150 150 155 155 155 152 162 152 160 160 160 Average Speed 155 | 157 160 160 154 150 150 150 150 150 150 153 155 155 160 158 162 155 160 160 160 Slowest Speed 170 | 160 160 160 160 150 150 150 150 150 150 155 155 155 163 163 162 170 160 160 160 Overloaded Moves . | . . . . . . . . . . . . . . . . . . . . Propulsion Burnouts . | . . . . . . . . . . . . . . . . . . . . Robots Hopped . | . . . . . . . . . . . . . . . . . . . . Cave-ins Triggered . | . . . . . . . . . . . . . . . . . . . . Microwarps 1 | . . . . . . . . . . . . . . . . . 1 . . Exploration Rate (%) 38 | 13 75 36 44 59 23 8 88 79 84 24 8 2 91 30 2 63 13 19 14 Regions Visited 19 Branch Regions 8 Pre-discovered Areas 1 | . . . . 1 . . . . . . . . . . . . . . . Known Exits Taken 18 | 1 1 1 1 1 1 1 1 1 1 1 1 1 . 1 1 1 1 1 . Unknown Exits Taken . | . . . . . . . . . . . . . . . . . . . . Scrap Searched . | . . . . . . . . . . . . . . . . . . . . Spaces Dug 21 | . . . . . . . . . . . . . . 13 . . 2 6 . Terrain Destroyed 564 | . . 1 . 22 52 . . . . . 14 . . 156 33 89 57 55 85 Melee . | . . . . . . . . . . . . . . . . . . . . Projectile 426 | . . 1 . . . . . . . . 14 . . 142 33 69 57 55 55 AOE 138 | . . . . 22 52 . . . . . . . . 14 . 20 . . 30 Terrain Rammed . | . . . . . . . . . . . . . . . . . . . . Walls Destroyed . | . . . . . . . . . . . . . . . . . . . . Machines Disabled . | . . . . . . . . . . . . . . . . . . . . Actions | -11 -10 -9 -8 -8 -7 -6 -6 -6 -6 -6 -5 -4 -4 -3 -2 -2 -2 -1 -1 --------- Run | Jun Mat Mat Mat Sto Fac Fac Ext Cet Arc Hub Fac Fac DSF Res Res Tes Sec Acc Com Total 11963 | 221 469 451 682 469 982 310 834 254 150 291 521 74 176 2235 158 1237 475 1397 577 Wait 2461 | . 9 32 58 83 84 18 31 17 17 17 57 . 26 1016 23 310 87 506 70 Move 8172 | 189 396 349 526 324 839 267 735 195 119 211 411 74 115 1042 83 780 332 775 410 Hop . | . . . . . . . . . . . . . . . . . . . . Pick Up 71 | . 8 8 3 2 6 . 3 . . . 4 . 3 2 . 16 7 6 3 Fast Attach 35 | 7 5 4 3 . 2 1 . . . . 1 . 1 9 . 1 . . 1 Attach 38 | . 4 2 2 . 1 . 1 . . . 2 . . . 1 12 6 4 3 Detach 1 | . . . . . 1 . . . . . . . . . . . . . . Swap 65 | . 2 4 8 5 8 . 2 . . 1 7 . 4 10 2 5 1 . 6 Drop 77 | . 2 8 5 2 5 . 3 . . 1 7 . 5 11 . 14 7 3 4 Fire 623 | 25 33 35 60 39 22 20 30 21 7 35 18 . 9 80 24 62 21 45 37 Melee . | . . . . . . . . . . . . . . . . . . . . Ram . | . . . . . . . . . . . . . . . . . . . . Kick . | . . . . . . . . . . . . . . . . . . . . Crush 10 | . 4 . . . . . . . . 2 2 . . 1 1 . . . . Escape Stasis . | . . . . . . . . . . . . . . . . . . . . Rewire . | . . . . . . . . . . . . . . . . . . . . Trap . | . . . . . . . . . . . . . . . . . . . . Miscellaneous 410 | . 6 9 17 14 14 4 29 21 7 24 12 . 13 64 24 37 14 58 43 Route ------- -11/Junkyard -10/Materials (discovered 3 exits: *Mat x2 / *Min) -9/Materials (discovered 2 exits: *Mat / *Min) -8/Materials (discovered 3 exits: Fac / *Sto x2) -8/Storage -7/Factory (discovered 2 exits: *Fac x2) -6/Factory -6/Extension (discovered 3 exits: *Fac x2 / *Cet) -6/Cetus -6/Archives (discovered 3 exits: *Fac / *Hub x2) -6/Hub_04(d) -5/Factory (discovered 2 exits: *Fac x2) -4/Factory -4/DSF -3/Research -2/Research (discovered 2 exits: Acc / *Tes) -2/Testing -2/Section 7 -1/Access -1/Command History --------- Turn | Location | Event 3 | -11/Junkyard | Identified exit to Materials 3 | -11/Junkyard | Discovered exit to Materials (range 15) 20 | -11/Junkyard | Upgraded with Propulsion slot (x1) 20 | -11/Junkyard | Upgraded with Utility slot (x1) 20 | -11/Junkyard | Upgraded with Weapon slot (x1) 379 | -11/Junkyard | Entered Materials 380 | -10/Materials | Build established: Hacker-Mutant 512 | -10/Materials | Identified exit to Materials 512 | -10/Materials | Discovered exit to Materials (range 16) 688 | -10/Materials | Identified exit to Mines 688 | -10/Materials | Discovered exit to Mines (range 9) 871 | -10/Materials | Upgraded with Utility slot (x2) 1115 | -10/Materials | Discovered exit to Materials (range 15) 1150 | -10/Materials | Entered another Materials area 1152 | -9/Materials | Reached level 2 1152 | -9/Materials | Reached level 3 1174 | -9/Materials | Build established: Hacker-Skirmisher 1182 | -9/Materials | Upgraded with Power slot (x1) 1182 | -9/Materials | Upgraded with Weapon slot (x1) 1388 | -9/Materials | Reached level 4 1401 | -9/Materials | Identified exit to Mines 1401 | -9/Materials | Discovered exit to Mines (range 13) 1451 | -9/Materials | Upgraded with Propulsion slot (x1) 1818 | -9/Materials | Identified exit to Materials 1818 | -9/Materials | Discovered exit to Materials (range 16) 1874 | -9/Materials | Entered another Materials area 1876 | -8/Materials | Reached level 5 1876 | -8/Materials | Reached level 6 1893 | -8/Materials | Build established: Hacker-Gunner 1958 | -8/Materials | Upgraded with Utility slot (x1) 1958 | -8/Materials | Upgraded with Weapon slot (x1) 1985 | -8/Materials | Reached level 7 2259 | -8/Materials | Reached level 8 2352 | -8/Materials | Upgraded with Utility slot (x1) 2410 | -8/Materials | Upgraded with Utility slot (x1) 2477 | -8/Materials | Identified exit to Storage 2477 | -8/Materials | Discovered exit to Storage (range 14) 2480 | -8/Materials | Identified exit to Factory 2480 | -8/Materials | Discovered exit to Factory (range 11) 2569 | -8/Materials | Destroyed 7 combat bots 2688 | -8/Materials | Discovered exit to Storage (range 5) 2707 | -8/Materials | Reached level 9 2995 | -8/Materials | Entered Storage 2997 | -8/Storage | Reached level 10 3006 | -8/Storage | Met a pair of Derelict thieves 3085 | -8/Storage | Garrison activated, responded to threat 3149 | -8/Storage | Destroyed 9 combat bots 3196 | -8/Storage | Reached level 11 3222 | -8/Storage | Learned location of Armory (-4) 3686 | -8/Storage | Discovered exit to Factory (range 16) 3726 | -8/Storage | Entered Factory 3728 | -7/Factory | Reached level 12 3769 | -7/Factory | Reached level 13 3918 | -7/Factory | Identified exit to Factory 3918 | -7/Factory | Discovered exit to Factory (range 5) 4226 | -7/Factory | Upgraded with Utility slot (x1) 4590 | -7/Factory | Discovered exit to Factory (range 12) 5025 | -7/Factory | Reached level 14 5184 | -7/Factory | Entered another Factory area 5186 | -6/Factory | Reached level 15 5561 | -6/Factory | Identified exit to Extension 5561 | -6/Factory | Discovered exit to Extension (range 11) 5620 | -6/Factory | Upgraded with Utility slot (x1) 5651 | -6/Factory | Reached level 16 5678 | -6/Factory | Entered Extension 5766 | -6/Extension | Rescued a captive Derelict 5905 | -6/Extension | Energy Cycler disabled 5908 | -6/Extension | Rescued a captive Derelict 5909 | -6/Extension | Rescued a captive Derelict 5911 | -6/Extension | Rescued a captive Derelict 5914 | -6/Extension | Rescued a captive Derelict 6004 | -6/Extension | Reached level 17 6021 | -6/Extension | Spotted B-75 Beast 6472 | -6/Extension | Destroyed B-75 Beast 6481 | -6/Extension | Identified exit to Factory 6481 | -6/Extension | Discovered exit to Factory (range 15) 6483 | -6/Extension | Spotted B-75 Beast 6503 | -6/Extension | Disrupted transfer network 6505 | -6/Extension | Destroyed B-75 Beast 6787 | -6/Extension | Build established: Scavenger-Gunner 6943 | -6/Extension | Discovered exit to Factory (range 10) 6945 | -6/Extension | Identified exit to Cetus 6945 | -6/Extension | Discovered exit to Cetus (range 6) 6954 | -6/Extension | Entered Cetus 6956 | -6/Cetus | Reached level 18 6973 | -6/Cetus | Spotted Cetus Guard 6973 | -6/Cetus | Spotted Cetus Guard 6975 | -6/Cetus | Spotted Cetus Guard 6980 | -6/Cetus | Destroyed Cetus Guard 6980 | -6/Cetus | Spotted Cetus Guard 6992 | -6/Cetus | Destroyed Cetus Guard 6995 | -6/Cetus | Destroyed Cetus Guard 6999 | -6/Cetus | Destroyed Cetus Guard 7276 | -6/Cetus | Identified exit to Archives 7276 | -6/Cetus | Discovered exit to Archives (range 15) 7315 | -6/Cetus | Spotted Cetus Guard 7316 | -6/Cetus | Spotted Cetus Guard 7358 | -6/Cetus | Entered Archives 7452 | -6/Archives | Reached level 19 7476 | -6/Archives | Unable to access archive contents 7500 | -6/Archives | Unable to access archive contents 7504 | -6/Archives | Identified exit to Hub_04(d) 7504 | -6/Archives | Discovered exit to Hub_04(d) (range 15) 7515 | -6/Archives | Unable to access archive contents 7519 | -6/Archives | Discovered exit to Factory (range 14) 7545 | -6/Archives | Discovered exit to Hub_04(d) (range 13) 7585 | -6/Archives | Entered Hub_04(d) 7991 | -6/Hub_04(d) | Discovered exit to Factory (range 4) 8077 | -6/Hub_04(d) | Entered Factory 8079 | -5/Factory | Reached level 20 8274 | -5/Factory | Upgraded with Utility slot (x1) 8427 | -5/Factory | Identified exit to Factory 8427 | -5/Factory | Discovered exit to Factory (range 14) 8461 | -5/Factory | Upgraded with Weapon slot (x1) 8462 | -5/Factory | Reached level 21 8564 | -5/Factory | Discovered exit to Factory (range 13) 8831 | -5/Factory | Cargo convoy interrupted 8868 | -5/Factory | Entered another Factory area 8870 | -4/Factory | Reached level 22 8982 | -4/Factory | Identified exit to DSF 8983 | -4/Factory | Entered DSF 8985 | -4/DSF | Reached level 23 8991 | -4/DSF | Upgraded with Propulsion slot (x1) 9109 | -4/DSF | Additional patrols routed to DSF 9219 | -4/DSF | Sterilization system engaged 9232 | -4/DSF | Identified exit to Research 9232 | -4/DSF | Discovered exit to Research (range 14) 9239 | -4/DSF | Ambient heat levels rising (+10) 9253 | -4/DSF | Entered Research 9255 | -3/Research | Reached level 24 9562 | -3/Research | Build established: Hacker-Gunner 9682 | -3/Research | Reached level 25 10495 | -3/Research | Core integrity fell below 50% 10495 | -3/Research | Reached level 26 10930 | -3/Research | Specialist reinforcements revealed to be Infiltrators 11298 | -3/Research | Reached level 27 11392 | -3/Research | Spotted B-86 Titan 11405 | -3/Research | Destroyed B-86 Titan 11466 | -3/Research | Identified exit to Research 11466 | -3/Research | Discovered exit to Research (range 10) 11503 | -3/Research | First assault squad dispatched 11842 | -3/Research | Build established: Scavenger-Gunner 12221 | -3/Research | Reached level 28 12253 | -3/Research | Destroyed 8 combat bots 12323 | -3/Research | Entered another Research area 12325 | -2/Research | Reached level 29 12345 | -2/Research | Identified exit to Testing 12345 | -2/Research | Discovered exit to Testing (range 17) 12358 | -2/Research | Identified exit to Access 12358 | -2/Research | Discovered exit to Access (range 18) 12457 | -2/Research | Core integrity fell below 50% 12465 | -2/Research | Reached level 30 12507 | -2/Research | Destroyed 13 combat bots 12598 | -2/Research | Entered Testing 12764 | -2/Testing | Build established: Hacker-Gunner 12981 | -2/Testing | Spotted Striker 13117 | -2/Testing | Reached level 31 13183 | -2/Testing | Destroyed 9 combat bots 13193 | -2/Testing | Upgraded with Utility slot (x1) 13205 | -2/Testing | Garrison activated, responded to threat 13628 | -2/Testing | Scanned by Researcher 13809 | -2/Testing | Spotted Fortress 13885 | -2/Testing | Upgraded with Weapon slot (x1) 13890 | -2/Testing | Upgraded with Weapon slot (x1) 14075 | -2/Testing | Destroyed Fortress 14169 | -2/Testing | Build established: Scavenger-Executioner 14246 | -2/Testing | Found Prototype Reactor 14247 | -2/Testing | Identified Vortex Chain Reactor 14272 | -2/Testing | Reached level 32 14348 | -2/Testing | First assault squad dispatched 14427 | -2/Testing | Identified exit to Section 7 14427 | -2/Testing | Discovered exit to Section 7 (range 6) 14435 | -2/Testing | Entered Section 7 14648 | -2/Section 7 | Scanned by Researcher 14658 | -2/Section 7 | Found Alien Artifact 14674 | -2/Section 7 | Identified Integrity Redistributor 14674 | -2/Section 7 | Used Integrity Redistributor, redistributed integrity from core (-91) 14811 | -2/Section 7 | Spotted B-90 Cyclops 15001 | -2/Section 7 | Discovered exit to Access (range 15) 15011 | -2/Section 7 | Intercept squad dispatched 15011 | -2/Section 7 | Spotted Tracker 15012 | -2/Section 7 | Spotted Tracker 15018 | -2/Section 7 | Destroyed Tracker 15022 | -2/Section 7 | Destroyed Tracker 15026 | -2/Section 7 | Spotted Combat Programmer 15026 | -2/Section 7 | Spotted Combat Programmer 15029 | -2/Section 7 | Destroyed Combat Programmer 15041 | -2/Section 7 | Destroyed Combat Programmer 15070 | -2/Section 7 | Found Alien Artifact 15074 | -2/Section 7 | Destroyed 8 combat bots 15107 | -2/Section 7 | Identified Microwarp Drive 15169 | -2/Section 7 | Entered Access 15171 | -1/Access | Reached level 33 15241 | -1/Access | Reached level 34 15244 | -1/Access | Core integrity fell below 50% 16505 | -1/Access | Identified exit to Command 16505 | -1/Access | Discovered exit to Command (range 20) 16639 | -1/Access | Intercept squad dispatched 16645 | -1/Access | Spotted Tracker 16647 | -1/Access | Spotted Tracker 16651 | -1/Access | Destroyed Tracker 16655 | -1/Access | Destroyed Tracker 16661 | -1/Access | Spotted Combat Programmer 16661 | -1/Access | Spotted Combat Programmer 16665 | -1/Access | Destroyed Combat Programmer 16673 | -1/Access | Destroyed Combat Programmer 17166 | -1/Access | Entered Command 17168 | -1/Command | Reached level 35 17465 | -1/Command | Spotted B-99 Colossus 17506 | -1/Command | Destroyed B-99 Colossus 17591 | -1/Command | Upgraded with Utility slot (x1) 18034 | -1/Command | Spotted Executioner 18034 | -1/Command | Spotted Executioner 18034 | -1/Command | Spotted Executioner 18034 | -1/Command | Spotted Executioner 18034 | -1/Command | Spotted Striker 18034 | -1/Command | Spotted Striker 18034 | -1/Command | Spotted Alpha 7 18034 | -1/Command | Spotted Alpha 7 18035 | -1/Command | Spotted B-99 Colossus 18051 | -1/Command | Destroyed Striker 18055 | -1/Command | Destroyed Striker 18067 | -1/Command | Destroyed Executioner 18071 | -1/Command | Destroyed Executioner 18074 | -1/Command | Spotted B-99 Colossus 18087 | -1/Command | Destroyed Alpha 7 18093 | -1/Command | Core integrity fell below 20% 18099 | -1/Command | Destroyed by B-99 Colossus with Multirail Last Messages --------------- 18092_ Penetrated by Slug. 18092_ Slug penetrates Earth. 18094_ Destroyed Com. Wheel. 18094_ Destroyed Imp. Ion Engine. 18094_ R-10 Processor destroyed. 18094_ Slug penetrates B-99 Colossus. 18094_ Penetrated by Slug. 18094_ Slug penetrates Wall. 18095_ Penetrated by Slug. 18098_ The unstable cave ceiling collapses. 18098_ Penetrated by Slug. 18098_ Slug penetrates Wall. 18098_ Destroyed Com. Wheel. 18098_ R-10 Processor destroyed. 18098_ Micro-nuke intercepted. 18098_ Slug penetrates B-99 Colossus. 18098_ B-99 Colossus Imp. Utility Shielding blasted off. 18099_ Wall collapses. 18099_ Penetrated by Slug. [Achievement: 40k Club] Map ----- +----------------------------------------------------+ | ?????????????????????????????# #?????????????????? | | ???????????################### #?????????????????? | | ???????????# #?????????????????? | | ???????????# ################?????????????????? | | ???????##### #????????????????????????????????? | | ?# #????????????????????????????????? | | ?????########## #????????????????????????????????? | | ??????????????# ############?????????????????????? | | ??????????????# + #?????????????????????? | | ??????????????###### = #?????????????????????? | | ???????????????????# #?????????????????????? | | ???????????????????# #?????????????????????? | | ???????????????????# #??#??????????????????? | | ???????????????????# #? ??????????????????? | | ?????????????? ????#R #? ????? ?????????????? | | ??????????????? ##?# !#? ???? "????????????? | | ???????????????# ## ! # ??? ?????????????? | | ???????#?#?##??# ! # ??? ??????????????? | | ??? # # # # ##?# = # ?? ????????????????? | | ?? ^ ;#% # ##+####+###??????????? | | ?? ^^ % BB !== ?????????? | | ?" ^^ BB[%[ % ?????????? | | ?" ! ^ 7BB!*!%! R ?????????? | | ?" ^ % + BB% %% = ?????????? | | ?" !^ ; !% [ ;#########??????????? | | ? # # # # #"#?# [ @% #???????????????????? | | ?????????????????## ! % #??????????????????? | | ??????????????????# % % #?????????????????? | | ??????????????????## = ;##?????????????????? | | ???????????????????# != ##??????????????????? | | ???????????????????## ;???????????????????? | | ????????????????????# ##??????????????????? | | ????????????????????#%% * #???????????????????? | | ????????????????????# w% #???????????????????? | | ????????????????????### ####;#???????????????????? | | ??????????????????????#;#???##???????????????????? | | ?????????????????????? ????????????????????????? | | ?????????????????????[ ???????????????????????? | | ???????????????????? ! #??????????????????????? | | ???????????????????? #??????????????????????? | | ???????????????????# =#??????????????????????? | | ???????????????????# #??????????????????????? | | ???????????????????###"+###??????????????????????? | | ?????????????????????# ?????????????????????????? | | ????????????????????? ?????????????????????????? | | ?????????????????????# ?????????????????????????? | | ??????????????????????#??????????????????????????? | | ?????????????????????????????????????????????????? | | ?????????????????????????????????????????????????? | | ?????????????????????????????????????????????????? | +----------------------------------------------------+ Best States ------------- Heat Dissipation 169 Energy Generation 55 Energy Capacity 800 Matter Stores 900 Matter Capacity 900 Sight Range 16 Robot Scan Range 16 Terrain Scan Range 24 Terrain Scan Density 310 EM Shielding 4 Armor Coverage 225 Resistance: KI 60 Resistance: TH 60 Resistance: EX 85 Resistance: EM 35 Resistance: I 35 Resistance: S 35 Resistance: P 35 Evasion (%) 40 Targeting Accuracy 16 Target Analysis 8 Core Analysis 6 Armor Integrity Analysis 30 Recoil Reduction 8 Kinecelleration 30 Offensive Hacking 30 Item Schematics ----------------- Flak Gun | -8/Storage | Hacked Adv. Visual Processing Unit | -8/Storage | Hacked System Restoration Module | -7/Factory | Scanalyzed Biometal Heavy Treads | -3/Research | Hacked Lgt. Regenerative Plating | -2/Testing | Hacked Exp. Biometal Leg | -2/Testing | Archive Adv. Variable Charge Gun | -2/Testing | Archive Exp. Thermal Shield | -2/Testing | Archive Exp. Target Analyzer | -2/Testing | Archive Kinecellerator | -2/Section 7 | Scanalyzed Imp. Focal Shield | -2/Section 7 | Scanalyzed Robot Schematics ------------------ R-10 Processor | -2/Testing | Archive R-06 Scavenger | -2/Testing | Archive K-01 Serf | -2/Section 7 | Archive B-74 Champion | -2/Section 7 | Archive Fabricated ------------ Nothing Alien Tech Used ----------------- Integrity Redistributor Microwarp Drive Achievements -------------- 40k Club Executioner Gun Specialist Gunslinger Nope Signature Confirmed Treasure Hunter Challenges ------------ None RPGLIKE | -11 -10 -9 -8 -8 -7 -6 -6 -6 -6 -6 -5 -4 -4 -3 -2 -2 -2 -1 -1 --------- Run | Jun Mat Mat Mat Sto Fac Fac Ext Cet Arc Hub Fac Fac DSF Res Res Tes Sec Acc Com Levels Raised 34 | . . 3 5 2 3 2 1 1 1 . 2 1 1 5 2 2 . 2 1 XP Earned 58239 | 6000 925 4370 7332 3823 3362 2705 2798 1285 436 1092 2407 1500 1872 6665 3405 2539 1131 2883 1709 XP Spent 53675 | 1500 3400 4700 8175 . 4550 2600 2950 . . 60 7820 . 1100 2025 1970 8245 . . 4580 Upgrades 84 | 3 5 7 13 . 3 1 5 . . 2 7 . 1 11 10 12 . . 4 Power Slot 1 | . . 1 . . . . . . . . . . . . . . . . . Propulsion Slot 3 | 1 . 1 . . . . . . . . . . 1 . . . . . . Utility Slot 11 | 1 2 . 3 . 1 1 . . . . 1 . . . . 1 . . 1 Weapon Slot 6 | 1 . 1 1 . . . . . . . 1 . . . . 2 . . . Core Integrity 14 | . . . . . . . . . . 2 . . . . 6 5 . . 1 Heat Dissipation 9 | . . . . . . . . . . . . . . 5 . 4 . . . Energy Storage 2 | . . . . . . . . . . . . . . 2 . . . . . Matter Storage 12 | . . . 2 . . . . . . . . . . 4 4 . . . 2 Inventory Capacity 7 | . 3 . . . 2 . . . . . 2 . . . . . . . . Terrain Scan Density 3 | . . . . . . . . . . . 3 . . . . . . . . KI Resistance % 4 | . . . 1 . . . 3 . . . . . . . . . . . . TH Resistance % 4 | . . . 2 . . . 2 . . . . . . . . . . . . EX Resistance % 4 | . . . 4 . . . . . . . . . . . . . . . . KI Damage % 4 | . . 4 . . . . . . . . . . . . . . . . . Protomatter Created 7407 | . 41 101 512 448 247 32 234 338 115 267 130 . 378 1708 643 1083 104 569 457 Integrity Restored 8682 | . 103 174 323 255 268 96 654 405 141 509 231 . 271 1374 508 772 312 1323 963 Core 8170 | . 103 174 323 231 219 96 654 405 141 320 231 . 271 1194 438 772 312 1323 963 Parts 512 | . . . . 24 49 . . . . 189 . . . 180 70 . . . . Protomatter Decayed 4055 | . 6 42 402 269 126 . 223 105 14 96 122 . . 1344 250 823 . 121 112 Game ------ Seed rpglike Manual? 1 Play Time 03:27:16 Cumulative 32.8 hours Start 2023.09.12 @ 14:39:18 End 2023.09.13 @ 21:25:35 Sessions 7 Manual Loads 0 Difficulty Explorer Special Mode Winter2019/RPGLIKE Game No. 27 Rogue 0 Adventurer 18 Explorer 9 Win Type - Total 0 Types 0/0/0/0/0/0/0/0/0 Lore% 35 Gallery% 29 Achievement% 33 Wizard Run 0 Options --------- ASCII 0 Keyboard 0 Movement Mouse Keybinds 0 Fullscreen 1 Font 12/Tallcaps Map View 76x50 Tactical HUD 1 Map Filters NONE Filters NONE Steam 1 RUN: 0802c868-80eb-4597-a2e6-8bc27f568b6c